[Event "Irish New Year Events-GM 2020"]
[Site "Dublin"]
[Date "2020.01.06"]
[Round "9.4"]
[White "Turner, Matthew J"]
[Black "Fitzsimons, David"]
[Result "1-0"]
[ECO "A48"]
[WhiteElo "2521"]
[BlackElo "2317"]
[Annotator "RC"]
[PlyCount "117"]
[EventDate "2020.01.02"]
[EventType "tourn"]
[EventCountry "IRL"]
[SourceTitle "playchess.com"]
[Source "ChessBase"]
[SourceQuality "1"]
[TimeControl "40/5400+30:1800+30"]

1. d4 {[%emt 0:00:00]} Nf6 {[%emt 0:00:00]} 2. Nf3 {[%emt 0:00:30]} g6 {[%emt 0:00:30]} 3. Nc3 {[%emt 0:00:30]} Bg7 {[%emt 0:00:30]} 4. e4 {[%emt 0:00:30]} d5 {[%emt 0:00:30]} 5. e5 {[%emt 0:00:30]} Ne4 {[%emt 0:00:30]} 6. Nxe4 {[%emt 0:00:30]} dxe4 {[%emt 0:00:30]} 7. Ng5 {[%emt 0:00:30]} c5 {[%emt 0:00:30]} 8. dxc5 {[%emt 0:00:30]} Qc7 {[%emt 0:00:30]} 9. Bf4 {[%emt 0:00:30]} O-O {[%emt 0:00:30]} 10. Bc4 {[%emt 0:00:30]} Qxc5 {[%emt 0:00:30]} 11. Qd5 {[%emt 0:00:30]} Qxd5 {[%emt 0:00:30]} 12. Bxd5 {[%emt 0:00:30]} Nc6 {[%emt 0:00:30]} 13. Bxc6 {[%emt 0:00:30]} bxc6 {[%emt 0:00:30]} 14. Nxe4 {[%emt 0:00:30]} Bf5 {[%emt 0:00:30]} 15. f3 {[%emt 0:00:30]} Rfd8 {[%emt 0:00:30]} 16. Rd1 {[%emt 0:00:30]} Rd5 {[%emt 0:00:30]} 17. c4 {[%emt 0:00:30]} Rxd1+ {[%emt 0:00:30]} 18. Kxd1 {[%emt 0:00:30]} Rd8+ {[%emt 0:00:30]} 19. Kc2 {[%emt 0:00:30]} g5 {[%emt 0:00:30]} 20. Bxg5 {[%emt 0:00:30]} Bxe5 {[%emt 0:00:30]} 21. Be3 {[%emt 0:00:30]} a6 {[%emt 0:00:30]} 22. b3 {[%emt 0:00:30]} h5 {[%emt 0:00:30]} 23. h3 {[%emt 0:00:30]} Rd6 {[%emt 0:00:30]} 24. g4 {[%emt 0:00:30]} hxg4 {[%emt 0:00:30]} 25. hxg4 {[%emt 0:00:30]} Bg6 {[%emt 0:00:30]} 26. Rh3 {[%emt 0:00:30]} f5 {[%emt 0:00:30]} 27. gxf5 {[%emt 0:00:30]} Bxf5 {[%emt 0:00:30]} 28. Rh5 {[%emt 0:00:30]} Rf6 {[%emt 0:00:30]} 29. Kd2 {[%emt 0:00:30]} Rf7 {[%emt 0:00:30]} 30. Rg5+ {[%emt 0:00:30]} Kf8 {[%emt 0:00:30]} 31. Nc5 {[%emt 0:00:30]} Bd6 {[%emt 0:00:30]} 32. Ne4 {[%emt 0:00:30]} Bb4+ {[%emt 0:00:30]} 33. Ke2 {[%emt 0:00:30]} Ke8 {[%emt 0:00:30]} 34. Rg8+ {[%emt 0:00:30]} Rf8 {[%emt 0:00:30]} 35. Rxf8+ {[%emt 0:00:30]} Kxf8 {[%emt 0:00:30]} 36. Kd3 {[%emt 0:00:30]} Ke8 {[%emt 0:00:30]} 37. Kd4 {[%emt 0:00:30]} Kd7 {[%emt 0:00:30]} 38. Ke5 {[%emt 0:00:30]} Bg6 {[%emt 0:00:30]} 39. Bb6 {[%emt 0:00:30]} e6 {[%emt 0:00:30]} 40. Kf6 {[%emt 0:00:30]} Bf5 {[%emt 0:00:30]} 41. Be3 {[%emt 0:30:30]} Ba3 {[%emt 0:30:30]} 42. Kf7 {[%emt 0:00:30]} Be7 {[%emt 0:00:30]} 43. Bh6 {[%emt 0:00:30]} e5 {[%emt 0:00:30]} 44. Bf8 {[%emt 0:00:30]} Bh4 {[%emt 0:00:30]} 45. Bg7 {[%emt 0:00:30]} Bh3 {[%emt 0:00:30]} 46. Bxe5 {[%emt 0:00:30]} Be7 {[%emt 0:00:30]} 47. Bf6 {[%emt 0:00:30]} Ba3 {[%emt 0:00:30]} 48. Bd4 {[%emt 0:00:30]} Bg2 {[%emt 0:00:30]} 49. Nf6+ {[%emt 0:00:30]} Kd6 {[%emt 0:00:30]} 50. f4 {[%emt 0:00:30]} Bc1 {[%emt 0:00:30]} 51. f5 {[%emt 0:00:30]} c5 {[%emt 0:00:30]} 52. Bc3 {[%emt 0:00:30]} Be3 {[%emt 0:00:30]} 53. Be1 {[%emt 0:00:30]} Bf4 {[%emt 0:00:30]} 54. Nh5 {[%emt 0:00:30]} Be5 {[%emt 0:00:30]} 55. f6 {[%emt 0:00:30]} Bf3 {[%emt 0:00:30]} 56. Ng3 {[%emt 0:00:30]} Kd7 {[%emt 0:00:30]} 57. Bf2 {[%emt 0:00:30]} a5 {[%emt 0:00:30]} 58. Kg6 {[%emt 0:00:30]} Ke6 {[%emt 0:00:30]} 59. f7 {[%emt 0:00:30]} 1-0